fUSD/lending_fUSD_20260507
["ID","MTS","AMOUNT","RATE_DAILY","PERIOD"]
[421756520,1778107848000,-2430.59892602,0.00031126,2]
[421756514,1778107848000,-238.06,0.00028118,2]
[421756518,1778107848000,-485.63870129,0.00031126,2]
[421756513,1778107848000,-238.06,0.0002783,30]
[421756510,1778107848000,-238.06,0.00026964,30]
[421756511,1778107848000,-238.06,0.00027253,2]
[421756512,1778107848000,-238.06,0.00027541,7]
[421756507,1778107848000,-150.0,0.00025696,2]
[421756509,1778107848000,-238.06,0.00026676,7]
[421756508,1778107848000,-238.06,0.00026388,2]
[421756521,1778107848000,-1347.626955,0.00031126,2]
[421756515,1778107848000,-238.06,0.00028406,7]
[421756522,1778107848000,-845.0235,0.00031126,2]
[421756539,1778107848000,-1311.54428679,0.00039366,60]
[421756524,1778107848000,-214.34,0.00035886,120]
[421756537,1778107848000,-1294.51751406,0.00039366,60]
[421756538,1778107848000,-238.05488594,0.00039366,60]
[421756536,1778107848000,-1532.5724,0.00039366,60]
[421756535,1778107848000,-1532.5724,0.00039366,60]
[421756534,1778107848000,-1532.5724,0.00039366,60]
[421756533,1778107848000,-1532.5724,0.00039366,60]
[421756531,1778107848000,-341.54594832,0.00039366,60]
[421756528,1778107848000,-300.0,0.00038206,2]
[421756529,1778107848000,-207.373895,0.000383,7]
[421756527,1778107848000,-1046.0,0.00038206,30]
[421756525,1778107848000,-31.65287144,0.00038206,2]
[421756526,1778107848000,-268.34712856,0.00038206,2]
[421756532,1778107848000,-1532.5724,0.00039366,60]
[421756530,1778107848000,-151.0,0.000383,7]
[421756523,1778107848000,-1368.47583056,0.00031126,2]
[421756540,1778107861000,2500.0,0.00028839,120]
[421756542,1778107861000,2500.0,0.00029271,120]
[421756543,1778107861000,2500.0,0.00029271,120]
[421756541,1778107861000,2500.0,0.00029271,120]
[421756545,1778107865000,644.88046547,0.00023445,120]
[421756544,1778107865000,500.0,0.00020015,120]
[421756546,1778107970000,-1900.0,0.00013545,2]
[421756547,1778107977000,209.67,0.00012951,2]
[421756548,1778108495000,2552.36504526,0.000114,2]
[421756549,1778108552000,4276.48933521,8e-05,2]
[421756551,1778108557000,959.8194082,0.00011,2]
[421756550,1778108557000,3171.15561953,0.00011,2]
[421756552,1778108637000,262.33379853,0.000101,2]
[421756554,1778108682000,10000.01,0.00012,2]
[421756556,1778108682000,10000.01,0.00012,2]
[421756555,1778108682000,10000.01,0.00012,2]
[421756557,1778108682000,10000.01,0.00012,2]
[421756553,1778108682000,8777.85679327,0.00012,2]
[421756559,1778108682000,10000.01,0.00012,2]
[421756561,1778108682000,10000.01,0.00012,2]
[421756562,1778108682000,10000.01,0.00012,2]
[421756560,1778108682000,10000.01,0.00012,2]
[421756558,1778108682000,10000.01,0.00012,2]
[421756563,1778108784000,898.823837,7.945e-05,2]
[421756565,1778108786000,38434.49527356,0.000107,2]
[421756564,1778108786000,4101.186163,0.000107,2]
[421756566,1778108789000,494.25266002,0.0001062,2]
[421756585,1778109033000,-17795.67411307,0.00012,2]
[421756579,1778109033000,-150.0,0.00011998,2]
[421756580,1778109033000,-206.10169871,0.00011998,2]
[421756584,1778109033000,-300.0,0.00011999,2]
[421756576,1778109033000,-250.0,0.00011949,2]
[421756573,1778109033000,-716.88532856,0.00011848,2]
[421756574,1778109033000,-1176.85119682,0.00011848,2]
[421756575,1778109033000,-202.67823992,0.00011899,2]
[421756571,1778109033000,-1226.08351096,0.00011848,2]
[421756583,1778109033000,-300.0,0.00011999,2]
[421756569,1778109033000,500.0,0.00029433,120]
[421756577,1778109033000,-82.06775359,0.00011979,2]
[421756582,1778109033000,-1200.0,0.00011998,2]
[421756581,1778109033000,-93.89830129,0.00011998,2]
[421756587,1778109033000,-603.84235597,0.00012,2]
[421756578,1778109033000,-316.51765582,0.00011979,2]
[421756597,1778109033000,-99374.54458847,0.00012,2]
[421756598,1778109033000,-9635.56087776,0.00012,2]
[421756596,1778109033000,-9885.18289234,0.00012,2]
[421756594,1778109033000,-440.0,0.00012,2]
[421756593,1778109033000,-6226.43661,0.00012,2]
[421756595,1778109033000,-12459.82282015,0.00012,2]
[421756588,1778109033000,-25795.283639,0.00012,2]
[421756590,1778109033000,-44595.01110088,0.00012,2]
[421756592,1778109033000,-5493.50220405,0.00012,2]
[421756589,1778109033000,-317.81348446,0.00012,2]
[421756586,1778109033000,-351.5299975,0.00012,2]
[421756591,1778109033000,-478.50807902,0.00012,2]
[421756633,1778109038000,-300.0,0.00013171,2]
[421756627,1778109038000,-204.01282206,0.00013033,2]
[421756629,1778109038000,-2825.48014903,0.00013043,2]
[421756639,1778109038000,-150.0,0.00013488,2]
[421756628,1778109038000,-3929.05472972,0.00013033,2]
[421756636,1778109038000,-229.77105033,0.00013199,2]
[421756640,1778109038000,-150.0,0.00013488,2]
[421756631,1778109038000,-255.0,0.00013078,2]
[421756652,1778109038000,-150.0,0.00013613,2]
[421756630,1778109038000,-150.0,0.00013053,2]
[421756632,1778109038000,-250.0,0.00013089,2]
[421756637,1778109038000,-2825.48014903,0.00013365,2]
[421756638,1778109038000,-150.0,0.00013488,2]
[421756642,1778109038000,-150.0,0.00013488,2]
[421756653,1778109038000,-150.0,0.00013629,2]
[421756641,1778109038000,-150.0,0.00013488,2]
[421756621,1778109038000,-500.0,0.0001302,2]
[421756635,1778109038000,-1680.0,0.00013198,2]
[421756624,1778109038000,-500.0,0.0001302,2]
[421756606,1778109038000,-2098.95,0.00012,2]
[421756623,1778109038000,-500.0,0.0001302,2]
[421756607,1778109038000,-1000.73875793,0.00012,2]
[421756647,1778109038000,-150.0,0.00013544,2]
[421756608,1778109038000,-368.39075,0.00012,2]
[421756609,1778109038000,-4934.206548,0.00012,2]
[421756612,1778109038000,-7380.88413698,0.00012,2]
[421756614,1778109038000,-158.87996239,0.00012177,2]
[421756611,1778109038000,-380.52932165,0.00012,2]
[421756610,1778109038000,-26275.76890073,0.00012,2]
[421756613,1778109038000,-2825.48014907,0.00012077,2]
[421756616,1778109038000,-202.67823991,0.00012385,2]
[421756615,1778109038000,-1011.89406287,0.00012277,2]
[421756617,1778109038000,-2825.48014903,0.00012399,2]
[421756626,1778109038000,-160.39641372,0.0001302,2]
[421756619,1778109038000,-202.67823991,0.0001287,2]
[421756625,1778109038000,-500.0,0.0001302,2]
[421756618,1778109038000,-2825.48014903,0.00012721,2]
[421756622,1778109038000,-500.0,0.0001302,2]
[421756620,1778109038000,-268.44,0.0001302,2]
[421756643,1778109038000,-150.0,0.00013488,2]
[421756634,1778109038000,-300.0,0.00013172,2]
[421756645,1778109038000,-150.0,0.00013488,2]
[421756672,1778109038000,-150.0,0.00013862,2]
[421756673,1778109038000,-150.0,0.00013862,2]
[421756675,1778109038000,-150.0,0.00013912,2]
[421756674,1778109038000,-150.0,0.00013884,2]
[421756676,1778109038000,-150.0,0.0001394,2]
[421756671,1778109038000,-150.0,0.00013862,2]
[421756679,1778109038000,-150.0,0.00013987,2]
[421756678,1778109038000,-150.0,0.00013968,2]
[421756670,1778109038000,-150.0,0.00013855,2]
[421756681,1778109038000,-150.0,0.00013987,2]
[421756684,1778109038000,-2825.48014903,0.00014009,2]
[421756683,1778109038000,-250.0,0.00014,2]
[421756687,1778109038000,-150.0,0.00014053,2]
[421756686,1778109038000,-150.0,0.0001405,2]
[421756685,1778109038000,-150.0,0.00014025,2]
[421756689,1778109038000,-150.0,0.00014081,2]
[421756688,1778109038000,-150.0,0.00014064,2]
[421756648,1778109038000,-150.0,0.00013572,2]
[421756682,1778109038000,-150.0,0.00013997,2]
[421756677,1778109038000,-150.0,0.00013949,2]
[421756680,1778109038000,-150.0,0.00013987,2]
[421756666,1778109038000,-150.0,0.00013799,2]
[421756644,1778109038000,-150.0,0.00013488,2]
[421756667,1778109038000,-150.0,0.00013827,2]
[421756646,1778109038000,-150.0,0.00013516,2]
[421756649,1778109038000,-150.0,0.00013601,2]
[421756650,1778109038000,-150.0,0.00013603,2]
[421756651,1778109038000,-150.0,0.00013613,2]
[421756654,1778109038000,-150.0,0.00013657,2]
[421756656,1778109038000,-150.0,0.00013686,2]
[421756659,1778109038000,-268.44,0.00013705,2]
[421756655,1778109038000,-150.0,0.00013675,2]
[421756657,1778109038000,-2825.48014903,0.00013687,2]
[421756664,1778109038000,-150.0,0.00013742,2]
[421756662,1778109038000,-150.0,0.00013737,2]
[421756663,1778109038000,-150.0,0.00013737,2]
[421756660,1778109038000,-150.0,0.00013714,2]
[421756661,1778109038000,-150.0,0.00013718,2]
[421756658,1778109038000,-200.0,0.00013699,2]
[421756665,1778109038000,-150.0,0.0001377,2]
[421756668,1778109038000,-150.0,0.00013834,2]
[421756715,1778109039000,-268.44,0.0001439,2]
[421756719,1778109039000,-150.0,0.00014424,2]
[421756718,1778109039000,-150.0,0.00014421,2]
[421756721,1778109039000,-5008.65313104,0.00014455,2]
[421756723,1778109039000,-150.0,0.00014487,2]
[421756720,1778109039000,-150.0,0.00014449,2]
[421756724,1778109039000,-150.0,0.00014487,2]
[421756725,1778109039000,-150.0,0.00014487,2]
[421756717,1778109039000,-150.0,0.0001441,2]
[421756722,1778109039000,-150.0,0.00014477,2]
[421756728,1778109039000,-150.0,0.00014525,2]
[421756738,1778109039000,-530.01364362,0.00014628,2]
[421756729,1778109039000,-150.0,0.00014534,2]
[421756730,1778109039000,-5008.65313104,0.00014542,2]
[421756731,1778109039000,-150.0,0.00014562,2]
[421756732,1778109039000,-209.67,0.0001457,2]
[421756736,1778109039000,-150.0,0.00014612,2]
[421756733,1778109039000,-150.0,0.0001459,2]
[421756734,1778109039000,-150.0,0.00014612,2]
[421756737,1778109039000,-150.0,0.00014619,2]
[421756735,1778109039000,-150.0,0.00014612,2]
[421756740,1778109039000,-1717.0,0.00014628,2]
[421756726,1778109039000,-150.0,0.00014506,2]
[421756727,1778109039000,-2351.0,0.00014518,2]
[421756716,1778109039000,-150.0,0.00014393,2]
[421756701,1778109039000,-150.0,0.00014237,2]
[421756709,1778109039000,-150.0,0.00014336,2]
[421756750,1778109039000,-500.0,0.00014724,2]
[421756691,1778109039000,-150.0,0.00014112,2]
[421756690,1778109039000,-150.0,0.0001411,2]
[421756702,1778109039000,-150.0,0.00014237,2]
[421756692,1778109039000,-150.0,0.00014112,2]
[421756697,1778109039000,-5008.65313109,0.00014195,2]
[421756693,1778109039000,-150.0,0.00014138,2]
[421756696,1778109039000,-150.0,0.00014195,2]
[421756695,1778109039000,-150.0,0.00014179,2]
[421756694,1778109039000,-150.0,0.00014166,2]
[421756698,1778109039000,-150.0,0.00014223,2]
[421756703,1778109039000,-150.0,0.00014251,2]
[421756700,1778109039000,-150.0,0.00014237,2]
[421756699,1778109039000,-150.0,0.00014237,2]
[421756704,1778109039000,-150.0,0.00014254,2]
[421756707,1778109039000,-150.0,0.00014295,2]
[421756705,1778109039000,-150.0,0.00014279,2]
[421756706,1778109039000,-5008.65313104,0.00014282,2]
[421756708,1778109039000,-150.0,0.00014308,2]
[421756710,1778109039000,-167.12,0.00014351,2]
[421756712,1778109039000,-150.0,0.00014362,2]
[421756713,1778109039000,-150.0,0.00014364,2]
[421756711,1778109039000,-150.0,0.00014362,2]
[421756714,1778109039000,-5008.65313104,0.00014368,2]
[421756739,1778109039000,-708.4499875,0.00014628,2]
[421756746,1778109039000,-150.0,0.00014704,2]
[421756742,1778109039000,-1491.09096238,0.00014628,2]
[421756772,1778109039000,-106.66884224,0.00014873,2]
[421756764,1778109039000,-150.0,0.00014799,2]
[421756779,1778109039000,-150.0,0.00014958,2]
[421756783,1778109039000,-4883.34639816,0.00014975,2]
[421756769,1778109039000,-150.0,0.00014861,2]
[421756786,1778109039000,-150.0,0.00014986,2]
[421756778,1778109039000,-150.0,0.0001493,2]
[421756776,1778109039000,-659.19637169,0.00014888,2]
[421756784,1778109039000,-218.32599338,0.00014975,2]
[421756768,1778109039000,-150.0,0.00014845,2]
[421756782,1778109039000,-5008.65313104,0.00014975,2]
[421756770,1778109039000,-150.0,0.00014861,2]
[421756781,1778109039000,-276.04220515,0.00014975,2]
[421756777,1778109039000,-150.0,0.00014901,2]
[421756785,1778109039000,-265.8524428,0.00014986,2]
[421756788,1778109039000,-150.0,0.00014986,2]
[421756787,1778109039000,-150.0,0.00014986,2]
[421756790,1778109039000,-150.0,0.00014986,2]
[421756789,1778109039000,-254.74850454,0.00014986,2]
[421756793,1778109039000,-7818.00986019,0.00014989,2]
[421756791,1778109039000,-215.96660604,0.00014986,2]
[421756792,1778109039000,-150.0,0.00014986,2]
[421756741,1778109039000,-562.09853754,0.00014628,2]
[421756766,1778109039000,-50.31257113,0.00014817,2]
[421756771,1778109039000,-150.0,0.00014871,2]
[421756765,1778109039000,-5008.65313104,0.00014802,2]
[421756780,1778109039000,-155.69647975,0.00014975,2]
[421756775,1778109039000,-3596.22805072,0.00014888,2]
[421756743,1778109039000,-150.0,0.0001464,2]
[421756745,1778109039000,-150.0,0.00014675,2]
[421756748,1778109039000,-1513.16049576,0.00014715,2]
[421756749,1778109039000,-775.6416468,0.00014715,2]
[421756794,1778109039000,-747.90915539,0.00014989,2]
[421756744,1778109039000,-150.0,0.00014647,2]
[421756754,1778109039000,-150.0,0.00014724,2]
[421756752,1778109039000,-500.0,0.00014724,2]
[421756753,1778109039000,-217.17691746,0.00014724,2]
[421756761,1778109039000,-150.0,0.00014756,2]
[421756751,1778109039000,-500.0,0.00014724,2]
[421756756,1778109039000,-150.0,0.00014724,2]
[421756758,1778109039000,-150.0,0.00014732,2]
[421756762,1778109039000,-150.0,0.0001476,2]
[421756763,1778109039000,-150.0,0.00014788,2]
[421756757,1778109039000,-294.8453287,0.00014724,2]
[421756755,1778109039000,-150.0,0.00014724,2]
[421756759,1778109039000,-150.0,0.00014737,2]
[421756760,1778109039000,-150.0,0.00014737,2]
[421756774,1778109039000,-753.22870863,0.00014888,2]
[421756767,1778109039000,-99.68742887,0.00014817,2]
[421756747,1778109039000,-2719.85098848,0.00014715,2]
[421756773,1778109039000,-43.33115776,0.00014873,2]
[421756804,1778109040000,-300.0,0.00014999,2]
[421756801,1778109040000,-230.6951986,0.0001499,2]
[421756802,1778109040000,-230.6951986,0.0001499,2]
[421756803,1778109040000,-230.6951986,0.0001499,2]
[421756797,1778109040000,-36024.9748846,0.00014989,2]
[421756799,1778109040000,-240.34348808,0.00014989,2]
[421756796,1778109040000,-475.80353924,0.00014989,2]
[421756798,1778109040000,-500.0,0.00014989,2]
[421756806,1778109040000,-162142.0,0.00015,2]
[421756800,1778109040000,-500.0,0.00014989,2]
[421756805,1778109040000,-44974.41964352,0.00015,2]
[421756816,1778109040000,-157097.65299683,0.00015,2]
[421756809,1778109040000,-2316.90688967,0.00015,2]
[421756808,1778109040000,-1135.96567531,0.00015,2]
[421756807,1778109040000,-924171.54163454,0.00015,2]
[421756811,1778109040000,-2610.0,0.00015,2]
[421756812,1778109040000,-972.204,0.00015,2]
[421756813,1778109040000,-504.28224,0.00015,2]
[421756814,1778109040000,-1819.1209591,0.00015,2]
[421756819,1778109040000,-19169.99843249,0.00015,2]
[421756815,1778109040000,-2825.48014903,0.00014331,2]
[421756817,1778109040000,-16337.6022456,0.00015,2]
[421756818,1778109040000,-36884.8876836,0.00015,2]
[421756810,1778109040000,-390.204,0.00015,2]
[421756820,1778109041000,-1012.13922078,0.00015,2]
[421756821,1778109041000,-972.98655423,0.00015,2]
[421756836,1778109043000,-7029.85982336,0.00015,2]
[421756837,1778109043000,-8239.52216189,0.00015,2]
[421756841,1778109043000,-797626.46338056,0.00015,2]
[421756839,1778109043000,-354.3000025,0.00015,2]
[421756838,1778109043000,-4051.58577808,0.00015,2]
[421756840,1778109043000,-341.04,0.00015,2]
[421756844,1778109049000,-19636.84680466,0.00015,2]
[421756843,1778109049000,-2825.48014903,0.00014653,2]
[421756846,1778109049000,-39101.34391089,0.00015,2]
[421756845,1778109049000,-65000.0,0.00015,2]
[421756848,1778109049000,-3464.19492657,0.00015,2]
[421756849,1778109049000,-510.13958758,0.00015,2]
[421756857,1778109049000,-86377.41407216,0.00015,2]
[421756851,1778109049000,-1393.35230476,0.00015,2]
[421756854,1778109049000,-4608.69075428,0.00015,2]
[421756853,1778109049000,-494.61771879,0.00015,2]
[421756856,1778109049000,-651.98542784,0.00015,2]
[421756855,1778109049000,-9012.509345,0.00015,2]
[421756850,1778109049000,-500.0,0.00015,2]
[421756847,1778109049000,-347.27831802,0.00015,2]
[421756877,1778109063000,504.4114804,0.00029433,120]
[421756878,1778109075000,304.485455,0.00024017,120]
[421756879,1778109076000,5090.616147,0.00024006,120]
[421756880,1778109088000,3398.502695,0.00024006,120]
[421756881,1778109136000,500.0,0.00011748,2]
[421756893,1778109137000,758.74225435,0.00011999,2]
[421756892,1778109137000,758.74225435,0.00011999,2]
[421756891,1778109137000,758.74225435,0.00011999,2]
[421756890,1778109137000,758.74225435,0.00011999,2]
[421756889,1778109137000,758.74225435,0.00011999,2]
[421756887,1778109137000,758.74225435,0.00011999,2]
[421756886,1778109137000,758.74225435,0.00011999,2]
[421756884,1778109137000,758.74225435,0.00011999,2]
[421756885,1778109137000,758.74225435,0.00011999,2]
[421756882,1778109137000,758.74225435,0.00011999,2]
[421756883,1778109137000,758.74225435,0.00011999,2]
[421756894,1778109137000,395.1029478,0.00011999,2]
[421756888,1778109137000,758.74225435,0.00011999,2]
[421756897,1778109172000,500.0,0.00029433,120]
[421756896,1778109172000,500.0,0.00029433,120]
[421756898,1778109308000,225.0,0.00025221,120]
[421756899,1778109310000,225.0,0.00026482,120]
[421756902,1778109591000,3137.66,0.00030137,120]
[421756922,1778110232000,-150.0,0.00013563,2]
[421756923,1778110232000,-150.0,0.00013588,2]
[421756925,1778110232000,-150.0,0.00013638,2]
[421756936,1778110232000,-150.0,0.00013654,2]
[421756937,1778110232000,-150.0,0.00013654,2]
[421756938,1778110232000,-150.0,0.00013654,2]
[421756939,1778110232000,-3787.66,0.00013655,2]
[421756951,1778110232000,-150.0,0.00013712,2]
[421756943,1778110232000,-150.0,0.00013687,2]
[421756941,1778110232000,-2000.0,0.00013658,2]
[421756944,1778110232000,-195.75,0.00013699,2]
[421756942,1778110232000,-150.0,0.00013675,2]
[421756945,1778110232000,-163.13,0.00013699,2]
[421756946,1778110232000,-815.67,0.00013699,2]
[421756950,1778110232000,-158.74,0.00013706,2]
[421756920,1778110232000,-150.0,0.00013488,2]
[421756940,1778110232000,-227.22,0.00013658,2]
[421756917,1778110232000,-150.0,0.00013488,2]
[421756919,1778110232000,-150.0,0.00013488,2]
[421756905,1778110232000,-500.0,0.0001326,2]
[421756907,1778110232000,-250.0,0.00013373,2]
[421756911,1778110232000,-150.0,0.00013488,2]
[421756909,1778110232000,-1200.0,0.00013487,2]
[421756910,1778110232000,-150.0,0.00013488,2]
[421756908,1778110232000,-250.0,0.00013464,2]
[421756921,1778110232000,-150.0,0.00013525,2]
[421756906,1778110232000,-3787.66,0.00013322,2]
[421756913,1778110232000,-150.0,0.00013488,2]
[421756914,1778110232000,-150.83883825,0.00013488,2]
[421756916,1778110232000,-150.0,0.00013488,2]
[421756924,1778110232000,-150.0,0.000136,2]
[421756915,1778110232000,-150.0,0.00013488,2]
[421756918,1778110232000,-150.0,0.00013488,2]
[421756912,1778110232000,-150.49474749,0.00013488,2]
[421756947,1778110232000,-150.0,0.00013705,2]
[421756977,1778110232000,-150.0,0.00014087,2]
[421756952,1778110232000,-150.0,0.0001375,2]
[421756971,1778110232000,-150.0,0.00013987,2]
[421756972,1778110232000,-150.0,0.00013987,2]
[421756976,1778110232000,-150.0,0.00014087,2]
[421756974,1778110232000,-150.0,0.00014012,2]
[421756980,1778110232000,-706.01,0.00014145,2]
[421756975,1778110232000,-150.0,0.0001405,2]
[421756970,1778110232000,-150.0,0.00013987,2]
[421756978,1778110232000,-150.0,0.00014087,2]
[421756982,1778110232000,-150.0,0.00014154,2]
[421756985,1778110232000,-150.0,0.00014187,2]
[421756979,1778110232000,-150.0,0.00014125,2]
[421756983,1778110232000,-150.0,0.00014154,2]
[421756984,1778110232000,-150.0,0.00014162,2]
[421756949,1778110232000,-837.59,0.00013706,2]
[421756973,1778110232000,-3787.66,0.00013988,2]
[421756967,1778110232000,-150.0,0.00013975,2]
[421756981,1778110232000,-150.0,0.00014154,2]
[421756968,1778110232000,-150.0,0.00013987,2]
[421756969,1778110232000,-150.0,0.00013987,2]
[421756954,1778110232000,-150.0,0.00013787,2]
[421756953,1778110232000,-200.0,0.00013767,2]
[421756948,1778110232000,-16743.11,0.00013706,2]
[421756958,1778110232000,-150.0,0.00013821,2]
[421756957,1778110232000,-150.0,0.00013821,2]
[421756955,1778110232000,-150.0,0.00013787,2]
[421756956,1778110232000,-150.0,0.00013787,2]
[421756960,1778110232000,-150.0,0.00013825,2]
[421756966,1778110232000,-166.66,0.00013942,2]
[421756959,1778110232000,-150.0,0.00013821,2]
[421756965,1778110232000,-500.0,0.00013942,2]
[421756961,1778110232000,-150.0,0.00013862,2]
[421756964,1778110232000,-150.0,0.00013937,2]
[421756963,1778110232000,-150.0,0.000139,2]
[421756962,1778110232000,-150.0,0.00013887,2]
[421757028,1778110233000,-150.0,0.00014237,2]
[421757019,1778110233000,-500.0,0.00014199,2]
[421757021,1778110233000,-500.0,0.00014199,2]
[421757031,1778110233000,-150.0,0.00014312,2]
[421757020,1778110233000,-500.0,0.00014199,2]
[421757023,1778110233000,-2080.17592889,0.00014199,2]
[421757022,1778110233000,-500.0,0.00014199,2]
[421757029,1778110233000,-150.0,0.00014274,2]
[421757024,1778110233000,-150.0,0.000142,2]
[421757025,1778110233000,-497.93517669,0.00014216,2]
[421757026,1778110233000,-166.66,0.00014236,2]
[421757016,1778110233000,-500.0,0.00014199,2]
[421757030,1778110233000,-150.0,0.00014287,2]
[421757035,1778110233000,-3787.66,0.00014322,2]
[421757032,1778110233000,-150.0,0.0001432,2]
[421757034,1778110233000,-150.0,0.0001432,2]
[421757033,1778110233000,-150.0,0.0001432,2]
[421757036,1778110233000,-711.98972296,0.00014336,2]
[421757043,1778110233000,-150.0,0.00014462,2]
[421757040,1778110233000,-150.0,0.00014387,2]
[421757037,1778110233000,-150.0,0.00014349,2]
[421757041,1778110233000,-200.0,0.000144,5]
[421757039,1778110233000,-150.0,0.00014387,2]
[421757042,1778110233000,-150.0,0.00014424,2]
[421757038,1778110233000,-150.0,0.00014387,2]
[421757045,1778110233000,-204.70864528,0.00014479,2]
[421757017,1778110233000,-500.0,0.00014199,2]
[421757027,1778110233000,-2002.7115,0.00014236,2]
[421757015,1778110233000,-500.0,0.00014199,2]
[421757000,1778110233000,-151.0,0.00014199,2]
[421757014,1778110233000,-500.0,0.00014199,2]
[421756986,1778110233000,-200.0,0.00014199,2]
[421756987,1778110233000,-185.21192116,0.00014199,2]
[421756988,1778110233000,-500.0,0.00014199,2]
[421756989,1778110233000,-500.0,0.00014199,2]
[421756993,1778110233000,-500.0,0.00014199,2]
[421756990,1778110233000,-413.61787485,0.00014199,2]
[421756991,1778110233000,-500.0,0.00014199,2]
[421756994,1778110233000,-151.0,0.00014199,2]
[421756992,1778110233000,-151.0,0.00014199,2]
[421756995,1778110233000,-500.0,0.00014199,2]
[421756996,1778110233000,-151.0,0.00014199,2]
[421756997,1778110233000,-500.0,0.00014199,2]
[421756998,1778110233000,-151.0,0.00014199,2]
[421757044,1778110233000,-150.0,0.00014479,2]
[421757001,1778110233000,-500.0,0.00014199,2]
[421756999,1778110233000,-500.0,0.00014199,2]
[421757003,1778110233000,-500.0,0.00014199,2]
[421757004,1778110233000,-151.0,0.00014199,2]
[421757002,1778110233000,-151.0,0.00014199,2]
[421757006,1778110233000,-151.0,0.00014199,2]
[421757005,1778110233000,-500.0,0.00014199,2]
[421757008,1778110233000,-151.0,0.00014199,2]
[421757007,1778110233000,-500.0,0.00014199,2]
[421757010,1778110233000,-151.0,0.00014199,2]
[421757009,1778110233000,-500.0,0.00014199,2]
[421757011,1778110233000,-151.0,0.00014199,2]
[421757013,1778110233000,-500.0,0.00014199,2]
[421757012,1778110233000,-500.0,0.00014199,2]
[421757048,1778110233000,-150.0,0.00014487,2]
[421757018,1778110233000,-500.0,0.00014199,2]
[421757046,1778110233000,-150.0,0.00014487,2]
[421757078,1778110233000,-150.0,0.00014574,2]
[421757080,1778110233000,-150.0,0.00014587,2]
[421757083,1778110233000,-150.0,0.00014649,2]
[421757084,1778110233000,-150.0,0.00014653,2]
[421757085,1778110233000,-150.0,0.00014653,2]
[421757087,1778110233000,-3787.66,0.00014655,2]
[421757086,1778110233000,-150.0,0.00014653,2]
[421757090,1778110233000,-150.0,0.00014687,2]
[421757093,1778110233000,-41926.1943,0.00014691,2]
[421757092,1778110233000,-2126.8734,0.00014691,2]
[421757089,1778110233000,-150.0,0.00014687,2]
[421757094,1778110233000,-2500.0,0.00014691,2]
[421757091,1778110233000,-1242.17537851,0.0001469,2]
[421757079,1778110233000,-250.0,0.00014586,2]
[421757096,1778110233000,-2634.66726816,0.00014691,2]
[421757100,1778110233000,-1242.17537842,0.00014713,2]
[421757098,1778110233000,-366.85475455,0.00014699,2]
[421757101,1778110233000,-2634.66726808,0.00014714,2]
[421757097,1778110233000,-600.44207501,0.00014691,2]
[421757105,1778110233000,-500.0,0.00014746,2]
[421757095,1778110233000,-233.98723583,0.00014691,2]
[421757099,1778110233000,-1100.0,0.000147,5]
[421757102,1778110233000,-150.0,0.00014724,2]
[421757104,1778110233000,-2634.66726808,0.00014737,2]
[421757106,1778110233000,-500.0,0.00014746,2]